Cogmind - Beta 11.1 @@@ ROGUE MODE // 2022.09.20 @ 21:03:06 Player: DuckBoy Result: Destroyed by 8R-AWN with 8R-AWN's Boregun Performance ------------- Evolutions (0) 0 Regions Visited (3) 600 Robots Destroyed (30) 150 Value Destroyed (633) 633 Prototype IDs (0) 0 Alien Tech Used (0) 0 Bonus (-743) -743 TOTAL SCORE: 640 Bonus ------- High Alert Combat Kills 8 Friendly Fire -751 Cogmind --------- Core Integrity 0/250 Matter 11/300 Energy 100/100 System Corruption 2% Temperature Cool (0) Movement Treading (160) Location -10/Exiles Parts ------- > --- POWER (1) -------- (None) > --- PROPULSION (2) --- Light Treads > --- UTILITY (2) ------ (None) > --- WEAPON (2) ------- (None) > --- INVENTORY (5) ---- Hacking Suite Small Laser Mining Laser Peak State ------------ > --- POWER ------------ Ion Engine > --- PROPULSION ------- Light Treads Light Treads > --- UTILITY ---------- Small Storage Unit Light Armor Plating > --- WEAPON ----------- EM Pulse Gun Light Assault Rifle > --- INVENTORY -------- High-capacity Storage Unit Small Laser Grenade Launcher [Rating: 7] Favorites ----------- Power Ion Engine Engine Ion Engine Propulsion Light Treads Treads Light Treads Leg Aluminum Leg Utility High-capacity Storage Unit Storage High-capacity Storage Unit Protection Light Armor Plating Weapon Light Assault Rifle Energy Gun Small Laser Ballistic Gun Light Assault Rifle Ballistic Cannon Light Cannon Launcher Grenade Launcher Build | -11 -10 -10 -10 ------- Run | Scr Mat Min Exi Slots Evolved . | . . . . Power . | . . . . Propulsion . | . . . . Utility . | . . . . Weapon . | . . . . Parts Attached 30 | 6 11 8 5 Power 2 | 1 . 1 . Engine 2 | 1 . 1 . Core . | . . . . Reactor . | . . . . Propulsion 6 | 2 . 3 1 Treads 4 | 2 . 1 1 Leg 2 | . . 2 . Wheel . | . . . . Hover . | . . . . Flight . | . . . . Utility 3 | 1 2 . . Device . | . . . . Storage 2 | 1 1 . . Processor . | . . . . Hackware . | . . . . Protection 1 | . 1 . . Artifact . | . . . . Weapon 19 | 2 9 4 4 Energy Gun 4 | 1 2 1 . Energy Cannon . | . . . . Ballistic Gun 5 | 1 3 . 1 Ballistic Cannon 2 | . . 1 1 Launcher 8 | . 4 2 2 Special Weapon . | . . . . Impact Weapon . | . . . . Slashing Weapon . | . . . . Piercing Weapon . | . . . . Special Melee Weapon . | . . . . Unidentified Prototypes . | . . . . Parts Lost 10 | . 1 3 6 Power 2 | . . 1 1 Propulsion 4 | . . 2 2 Utility 1 | . 1 . . Weapon 3 | . . . 3 Highest Loss Streak 3 | . 1 2 3 To Critical Strikes 5 | . . . 5 Average Slot Usage (%) 87 | . 92 81 60 Engine 12 | . 14 11 8 Treads 21 | . 28 5 1 Leg 6 | . . 22 23 Storage 13 | . 14 14 8 Protection 5 | . 7 . . Energy Gun 10 | . 14 4 . Ballistic Gun 10 | . 13 4 1 Ballistic Cannon 2 | . . 9 7 Launcher 2 | . . 9 8 Naked Turns . | . . . . Heaviest Build 52 | 13 52 51 51 Greatest Support 40 | 40 40 40 20 Greatest Overweight (x) 4 | . 1 4 2 Average Overweight (x) . | . . 1 . Largest Inventory Capacity 20 | 8 20 20 20 Average Capacity 18 | 7 19 20 14 Most Carried 7 | 1 5 7 7 Average Carried 3 | . 2 6 6 Final Capacity 20 | 8 20 20 5 Final Carried 7 | 1 5 7 3 Class Distribution -------------------- 100% | Mutant Dominant Class ---------------- Mutant | -10/Materials Mutant | -10/Mines Mutant | -10/Exiles Resources | -11 -10 -10 -10 ----------- Run | Scr Mat Min Exi Matter Collected 594 | 161 369 64 . Remotely . | . . . . Salvage Created 795 | . 707 79 9 Parts 58 | . 50 8 . Haulers Intercepted 2 | . 2 . . Recyclers Shooed 1 | . 1 . . Parts Field Recycled . | . . . . Retrieved Matter . | . . . . Parts Self-Destructed . | . . . . Prevented . | . . . . Kills | -11 -10 -10 -10 ------- Run | Scr Mat Min Exi Combat Hostiles Destroyed 20 | . 12 6 2 Guns 8 | . 7 1 . AOE 12 | . 5 5 2 Classes Destroyed 9 | . 8 . 1 Worker 3 | . 3 . . Builder 2 | . 2 . . Hauler 2 | . 2 . . Recycler 2 | . 2 . . Operator 1 | . 1 . . Watcher 2 | . 2 . . Swarmer 8 | . 5 3 . Grunt 10 | . 7 3 . Assembled 6 | . . . 6 Best Kill Streak 4 | . 4 3 2 Combat Bots Only 3 | . 3 3 2 Max Kills in Single Turn 4 | . 3 3 4 Gunslinging . | . . . . Exploded 3 | . 2 3 2 Melee . | . . . . Uniques/NPCs Destroyed 1 | . . . 1 EX-HEX (-10/Exiles) Combat | -11 -10 -10 -10 -------- Run | Scr Mat Min Exi Damage Taken 1330 | . 531 265 534 Core 256 | . 64 65 127 Absorbed by Shields . | . . . . Core Remaining (%) 100 | 100 . . . Volleys Fired 93 | . 58 17 18 Largest 2 | . 2 2 2 Hottest 70 | . 70 60 60 Shots Fired 159 | . 108 24 27 Gun 120 | . 99 14 7 Cannon 9 | . . . 9 Launcher 30 | . 9 10 11 Special . | . . . . Kinetic 72 | . 49 7 16 Thermal 34 | . 27 7 . Explosive 30 | . 9 10 11 Electromagnetic 23 | . 23 . . Robot Hit Streak 7 | . 6 7 5 Robot Miss Streak 4 | . 3 3 4 Penetration Max . | . . . . Secondary Targets . | . . . . Shots Hit Robots 73 | . 53 11 9 Core Hits 62 | . 37 10 15 Critical Kills . | . . . . Critical Parts Destroyed . | . . . . Critical Strikes . | . . . . Melee Attacks . | . . . . Impact . | . . . . Slashing . | . . . . Piercing . | . . . . Sneak Attacks . | . . . . Combat Hostiles . | . . . . Follow-up Attacks . | . . . . Damage Inflicted 2201 | . 1079 553 569 Guns 598 | . 539 40 19 Cannons 122 | . . . 122 Explosions 1461 | . 521 513 427 Melee . | . . . . Ramming 20 | . 19 . 1 Kinetic 386 | . 216 29 141 Thermal 395 | . 359 36 . Explosive 1218 | . 303 488 427 Electromagnetic 182 | . 182 . . Impact . | . . . . Slashing . | . . . . Piercing . | . . . . Highest Corruption 2 | . 2 2 2 Average Corruption 1 | . 1 2 2 Corruption Purged . | . . . . Corruption Blocked . | . . . . Effects 19 | . 13 5 1 Message Errors 5 | . 5 . . Matter Fused 6 | . 4 2 . Heat Flow Errors 2 | . 2 . . Energy Discharges 3 | . . 2 1 Data Loss (minor) 3 | . 2 1 . Overload Shots . | . . . . Overflow Damage 34 | . 5 . 29 Projectiles . | . . . . Explosions 34 | . 5 . 29 Melee . | . . . . Knockbacks 4 | . . . 4 Impact . | . . . . Kinetic 4 | . . . 4 Secondary . | . . . . Self-Inflicted Damage 44 | . 23 21 . Shots 2 | . 1 1 . Rammed 4 | . 2 . 2 Targets Rammed 5 | . 3 . 2 Kicked . | . . . . Crushed 1 | . 1 . . Highest Temperature 250 | . 250 38 28 Average Temperature 48 | . 54 14 14 Received Heat Transfer 270 | . 162 108 . Effects 2 | . 2 . . Energy Bleed 1 | . 1 . . Interference 1 | . 1 . . Siege Activations . | . . . . Robots Corrupted . | . . . . Combat Hostiles . | . . . . Parts Fried 1 | . 1 . . Impact Corruptions . | . . . . Robots Melted . | . . . . Combat Hostiles . | . . . . Parts Melted 1 | . . 1 . Heat Transferred 550 | . 475 75 . Parts Sabotaged . | . . . . Parts Stolen . | . . . . Parts Stripped . | . . . . Power Chain Reactions 2 | . 2 . . Missiles Intercepted . | . . . . Alert | -11 -10 -10 -10 ------- Run | Scr Mat Min Exi Peak Influence 459 | . 410 459 . Initial 85 | . . 85 . Average 204 | . 183 341 . Maximum Alert Level 2 | . 2 2 . Low Security (%) 53 | 100 53 42 . Level 1 33 | . 41 . . Level 2 13 | . 4 57 . Level 3 . | . . . . Level 4 . | . . . . Level 5 . | . . . . High Security . | . . . . Max Security . | . . . . Squads Dispatched 3 | . 3 . . Investigation 1 | . 1 . . Extermination . | . . . . Reinforcement 2 | . 2 . . Assault . | . . . . Garrison . | . . . . Intercept . | . . . . Searches Triggered . | . . . . Construction Impeded . | . . . . Haulers Reinforced . | . . . . Active Scanning Responses . | . . . . Cargo Convoy Interrupts . | . . . . Stealth | -11 -10 -10 -10 --------- Run | Scr Mat Min Exi Distress Signals 2 | . 2 . . Communications Jammed . | . . . . Distress Signals . | . . . . Times Spotted 36 | . 25 7 4 Peak Tracking Total 5 | . 3 3 5 Tactical Retreats 1 | . 1 . . Traps | -11 -10 -10 -10 ------- Run | Scr Mat Min Exi Traps Triggered 2 | . 2 . . Indirectly . | . . . . Trap Hack Attempts . | . . . . Triggered . | . . . . Disarmed . | . . . . Reprogrammed . | . . . . Reused . | . . . . Traps Extracted . | . . . . Installed . | . . . . Triggered . | . . . . Machines | -11 -10 -10 -10 ---------- Run | Scr Mat Min Exi Machines Disabled 14 | . 5 6 3 Max in Single Turn 6 | . 3 6 1 Machines Sabotaged . | . . . . Garrisons Compromised . | . . . . Overloaded Fab Kills . | . . . . Hacking | -11 -10 -10 -10 --------- Run | Scr Mat Min Exi Machines Accessed 3 | . 3 . . Terminals 3 | . 3 . . Fabricators . | . . . . Repair Stations . | . . . . Recycling Units . | . . . . Scanalyzers . | . . . . Garrison Access . | . . . . Total Hacks 10 | . 10 . . Successful 5 | . 5 . . Failed 5 | . 5 . . Catastrophic 1 | . 1 . . Database Lockouts . | . . . . Manual 10 | . 10 . . Terminals 10 | . 10 . . Fabricators . | . . . . Repair Stations . | . . . . Recycling Units . | . . . . Scanalyzers . | . . . . Garrison Access . | . . . . Terminal Hacks 2 | . 2 . . Branch Access Points 1 | . 1 . . Unreport Threat 1 | . 1 . . Fabricator Hacks . | . . . . Repair Station Hacks . | . . . . Recycling Unit Hacks . | . . . . Scanalyzer . | . . . . Garrison Access Hacks . | . . . . Unauthorized Hacks 3 | . 3 . . Terminals 3 | . 3 . . Botnet 2 | . 2 . . Operators 1 | . 1 . . Fabricators . | . . . . Repair Stations . | . . . . Recycling Units . | . . . . Scanalyzers . | . . . . Garrison Access . | . . . . Data Cores Recovered . | . . . . Used . | . . . . Hacking Detections 3 | . 3 . . Full Trace Events 2 | . 2 . . Feedback Events . | . . . . Feedback Blocked . | . . . . Robot Schematics Acquired . | . . . . Robots Built . | . . . . Authchips . | . . . . Time . | . . . . Total Robot Build Rating . | . . . . Part Schematics Acquired . | . . . . Parts Built . | . . . . Authchips . | . . . . Time . | . . . . Total Part Build Rating . | . . . . Parts Repaired . | . . . . Time . | . . . . Parts Recycled . | . . . . Recycled Matter . | . . . . Retrieved Matter . | . . . . Retrieved Components . | . . . . Parts Scanalyzed . | . . . . Part Schematics Acquired . | . . . . Parts Damaged . | . . . . Bothacking | -11 -10 -10 -10 ------------ Run | Scr Mat Min Exi Used RIF Installer . | . . . . Robots Hacked . | . . . . Non-combat . | . . . . Combat . | . . . . Robot Hacks Applied . | . . . . Relay Couplers Released . | . . . . Fabnet Peak Effective % . | . . . . Robots Rewired . | . . . . Allies Hacked . | . . . . Hacks Repelled . | . . . . Allies | -11 -10 -10 -10 -------- Run | Scr Mat Min Exi Total Allies 3 | . . 3 . Largest Group 3 | . . 3 3 Highest-Rated Group 40 | . . 40 40 Highest-Rated Ally 16 | . . 16 16 Total Orders . | . . . . Ally Attacks 19 | . . . 19 Total Damage 75 | . . . 75 Kills 2 | . . . 2 Allies Corrupted . | . . . . Allies Melted . | . . . . Intel | -11 -10 -10 -10 ------- Run | Scr Mat Min Exi Robot Analysis Total . | . . . . Derelict Logs Recovered 1 | . . 1 . Drone Launches . | . . . . Drone Recoveries . | . . . . Exploration | -11 -10 -10 -10 ------------- Run | Scr Mat Min Exi Turns Passed 2329 | 67 1669 357 236 Spaces Moved 877 | 39 623 116 99 Core 4 | 4 . . . Treads 675 | 35 623 9 8 Legs 198 | . . 107 91 Wheels . | . . . . Hover . | . . . . Flight . | . . . . Fastest Speed 50 | 50 160 240 120 Average Speed 225 | 148 230 262 183 Slowest Speed 400 | 160 240 400 260 Overloaded Moves . | . . . . Propulsion Burnouts . | . . . . Robots Hopped . | . . . . Cave-ins Triggered . | . . . . Exploration Rate (%) 38 | 3 83 36 33 Regions Visited 3 Branch Regions 2 Pre-discovered Areas . | . . . . Known Exits Taken 1 | . 1 . . Unknown Exits Taken 2 | 1 . 1 . Scrap Searched 1 | . . 1 . Spaces Dug . | . . . . Terrain Destroyed 185 | . 82 84 19 Melee . | . . . . Projectile . | . . . . AOE 185 | . 82 84 19 Terrain Rammed . | . . . . Walls Destroyed . | . . . . Machines Disabled . | . . . . Actions | -11 -10 -10 -10 --------- Run | Scr Mat Min Exi Total 1065 | 45 752 143 125 Wait 44 | . 44 . . Move 874 | 38 622 115 99 Hop . | . . . . Pick Up 13 | 1 9 3 . Fast Attach 9 | 6 1 2 . Attach 3 | . . 1 2 Detach . | . . . . Swap 18 | . 10 5 3 Drop 6 | . 5 . 1 Fire 93 | . 58 17 18 Melee . | . . . . Ram . | . . . . Kick . | . . . . Crush 5 | . 3 . 2 Escape Stasis . | . . . . Rewire . | . . . . Trap . | . . . . Miscellaneous . | . . . . Route ------- -11/Scrapyard -10/Materials (discovered 4 exits: [*Mat x2] / *Min x2) -10/Mines -10/Exiles History --------- Turn | Location | Event 2 | -11/Scrapyard | Met Revision 17 2 | -11/Scrapyard | Discovered new exit (range 16) 68 | -11/Scrapyard | Entered Materials 304 | -10/Materials | Build established: Mutant 446 | -10/Materials | Discovered new exit (range 16) 538 | -10/Materials | Identified exit to Mines 838 | -10/Materials | Discovered new exit (range 14) 1251 | -10/Materials | Discovered new exit (range 16) 1737 | -10/Materials | Entered Mines 1890 | -10/Mines | Core integrity fell below 50% 2052 | -10/Mines | Assisted by bots powering up and referring to "LRC-V3" 2078 | -10/Mines | Deemed a non-threat by the Exiles lab entrance 2081 | -10/Mines | Discovered new exit (range 5) 2094 | -10/Mines | Entered Exiles 2094 | -10/Exiles | Accompanied by 3 allies 2159 | -10/Exiles | Met 8R-AWN 2203 | -10/Exiles | Met EX-HEX 2204 | -10/Exiles | Attacked by the Exiles 2212 | -10/Exiles | Allies destroyed EX-HEX 2260 | -10/Exiles | Core integrity fell below 20% 2267 | -10/Exiles | Lost 3 parts (1p2w) 2330 | -10/Exiles | Destroyed by 8R-AWN with 8R-AWN's Boregun Last Messages --------------- 02308_ Penetrated by HV Slug. 02308_ HV Slug penetrates FarCom Aligner. 02313_ Penetrated by HV Slug. 02313_ HV Slug penetrates FarCom Aligner. 02313_ Penetrated by HV Slug. 02313_ Critical hit (Destroy). 02313_ Grenade Launcher destroyed. 02313_ HV Slug penetrates FarCom Aligner. 02317_ Penetrated by HV Slug. 02317_ HV Slug penetrates FarCom Aligner. 02321_ Penetrated by HV Slug. 02321_ HV Slug penetrates Wall. 02321_ Penetrated by HV Slug. 02321_ HV Slug penetrates Wall. 02325_ Penetrated by HV Slug. 02325_ HV Slug penetrates Wall. 02325_ HV Slug penetrates Earth. 02327_ Slammed into 8R-AWN. 02330_ HV Slug penetrates Wall. 02330_ Penetrated by HV Slug. Map ----- +----------------------------------------------------+ | ?????????????????????????????????????????????????? | | ?????????????????????????????????????????????????? | | ?????????????????????????????????????????????????? | | ??????????????????? ???????????????????????? | | ???????????????????? ???????????????????????? | | ????????????????????# ???????????????????????? | | ????????????????????# ??#########????????????? | | ????????????????????# ??#""" ""#????????????? | | ????????????????????# ??#""" """#????????????? | | ????????????????????# ??#"" """#????????????? | | ???????????????????## ##" " """"#????????????? | | ???????????????????#" """"#????????????? | | ???????????????????#" " "#????????????? | | ???????????????????#" """#????????????? | | ???????????????????#" """#????????????? | | ???????????????????#" """#????????????? | | ???????????????????#" """##???????????? | | ???????????????????## """""???????????? | | ???????????????????## """##???????????? | | ???????????????????#;" " """"????????????? | | ????????????????????# "" #????????????? | | ????????????????????# """"""#????????????? | | ???????????????????## #######????????????? | | ??????????????????##" ##??????????????????? | | ?????????????????##"" #???????????????????? | | ?????????????????"""" @ ###???????????????????? | | ???????????????" " "" g #???###########??????? | | ??????????????"" " #####" """"""##?????? | | ????????????? " """"##????? | | ???????????? " #????? | | ???????????? """#????? | | ???????????? "#????? | | ???????????? " "##???? | | ????????????? "###?? | | ????????????? """""" ""#?? | | ?????????????? ######""" "#?? | | ??????????????""#?????#####""" ##? | | ??????????????????????????##""" ## | | ???????????????????????????#"""" ! # | | ???????????????????????????#"" !!!! ]! | | ????????????????????????????""" =!%!! | | ????????????????????????????? !%! = | | ????????????????????????????? !! * | | ???????????????????????????? | | ????????????????????????????? " | | ??????????????????????????????? " "" | | ????????????????????????????????? """ # | | ????????????????????????????????????"#" ### | | ?????????????????????????????????????## ##?? | | ??????????????????????????????????????# # ???? | +----------------------------------------------------+ Best States ------------- Heat Dissipation 25 Energy Generation 10 Energy Capacity 250 Matter Stores 300 Matter Capacity 300 Sight Range 16 Terrain Scan Density 10 Armor Coverage 150 Evasion (%) 55 Recoil Reduction 2 Item Schematics ----------------- None Robot Schematics ------------------ None Fabricated ------------ Nothing Alien Tech Used ----------------- None Achievements -------------- None Challenges ------------ None Game ------ Seed NetworkDeliverySlayer Manual? 0 Play Time 00:16:05 Cumulative 123.9 hours Start 2022.09.20 @ 20:49:48 End 2022.09.20 @ 21:03:06 Sessions 1 Manual Loads 0 Difficulty Rogue Special Mode None Game No. 99 Rogue 96 Adventurer 3 Explorer 0 Win Type - Total 1 Types 1/0/0/0/0/0/0/0/0 Lore% 53 Gallery% 51 Achievement% 46 Wizard Run 0 Options --------- ASCII 0 Keyboard 0 Movement Numpad Keybinds 0 Fullscreen 1 Font 18/SmallcapsGlow Map View 76x50 Tactical HUD 1 Map Filters NONE Filters NONE Steam 1 RUN: d38ac615-f8bb-4c21-a3b2-ca176d878a26